[Event "Early-Titled-Tuesday-Blitz-February-13-2024"]
[Site "Chess.com"]
[Date "2024.02.13"]
[Round "7"]
[White "Alexander_Donchenko"]
[Black "CaspiIsrael"]
[Result "0-1"]
[WhiteElo "2913"]
[BlackElo "2782"]
[TimeControl "180+1"]
[EndTime "9:20:56 PST"]
[Termination "CaspiIsrael won by resignation"]

1. Nf3 {[%clk 0:03:00.9]} 1... d5 {[%clk 0:02:54.7]} 2. b3 {[%clk 0:03:01.2]}
2... Nf6 {[%clk 0:02:52.6]} 3. Bb2 {[%clk 0:03:01.5]} 3... e6 {[%clk 0:02:53.2]}
4. e3 {[%clk 0:03:00.2]} 4... c5 {[%clk 0:02:51.2]} 5. Bb5+ {[%clk 0:02:57.4]}
5... Bd7 {[%clk 0:02:51]} 6. a4 {[%clk 0:02:57]} 6... Bd6 {[%clk 0:02:50.2]} 7.
O-O {[%clk 0:02:55]} 7... O-O {[%clk 0:02:50.2]} 8. Ne5 {[%clk 0:02:47.1]} 8...
Be8 {[%clk 0:02:26.1]} 9. d3 {[%clk 0:02:43.3]} 9... Nbd7 {[%clk 0:02:21.9]} 10.
f4 {[%clk 0:02:38.7]} 10... a6 {[%clk 0:02:21.6]} 11. Bxd7 {[%clk 0:02:37.7]}
11... Nxd7 {[%clk 0:02:22.5]} 12. Nd2 {[%clk 0:02:30.6]} 12... f6 {[%clk
0:02:20.6]} 13. Qg4 {[%clk 0:02:20.1]} 13... Nxe5 {[%clk 0:02:03.3]} 14. fxe5
{[%clk 0:02:19.2]} 14... f5 {[%clk 0:02:03.7]} 15. Qg3 {[%clk 0:02:14.2]} 15...
Be7 {[%clk 0:01:59.6]} 16. a5 {[%clk 0:02:12.2]} 16... Rc8 {[%clk 0:01:53.2]}
17. Rf2 {[%clk 0:02:07.1]} 17... g5 {[%clk 0:01:52.5]} 18. Kh1 {[%clk
0:01:59.9]} 18... g4 {[%clk 0:01:48.1]} 19. Rff1 {[%clk 0:01:54.3]} 19... Bh4
{[%clk 0:01:45.9]} 20. Qf4 {[%clk 0:01:54.4]} 20... Bg5 {[%clk 0:01:46.7]} 21.
Qf2 {[%clk 0:01:54.4]} 21... Bg6 {[%clk 0:01:43.1]} 22. Ra4 {[%clk 0:01:51]}
22... h5 {[%clk 0:01:39.3]} 23. Re1 {[%clk 0:01:42]} 23... Rc7 {[%clk
0:01:39.1]} 24. Nf1 {[%clk 0:01:41.8]} 24... h4 {[%clk 0:01:38.8]} 25. Bc1
{[%clk 0:01:39.8]} 25... Rcf7 {[%clk 0:01:35.9]} 26. Bd2 {[%clk 0:01:31.8]}
26... Qc7 {[%clk 0:01:34.4]} 27. Bc3 {[%clk 0:01:20.6]} 27... Rh7 {[%clk
0:01:32.9]} 28. Qe2 {[%clk 0:01:01.4]} 28... h3 {[%clk 0:01:31.5]} 29. g3 {[%clk
0:01:01.3]} 29... Qc6 {[%clk 0:01:31.1]} 30. Kg1 {[%clk 0:01:01.5]} 30... Rd7
{[%clk 0:01:24.9]} 31. Qf2 {[%clk 0:00:57.5]} 31... Rfd8 {[%clk 0:01:17.8]} 32.
Bb2 {[%clk 0:00:50.8]} 32... Be8 {[%clk 0:01:15.2]} 33. Rea1 {[%clk 0:00:49.3]}
33... Rc7 {[%clk 0:01:13.4]} 34. Qe2 {[%clk 0:00:41.8]} 34... Qd7 {[%clk
0:01:10.5]} 35. Rf4 {[%clk 0:00:39.3]} 35... Qg7 {[%clk 0:01:05.4]} 36. Rf2
{[%clk 0:00:37.5]} 36... Bc6 {[%clk 0:01:05.1]} 37. Nd2 {[%clk 0:00:36.9]} 37...
Rcd7 {[%clk 0:01:01.9]} 38. Ra2 {[%clk 0:00:36.4]} 38... Rb8 {[%clk 0:01:00.3]}
39. Ra1 {[%clk 0:00:36.5]} 39... b5 {[%clk 0:00:59.7]} 40. axb6 {[%clk
0:00:36.5]} 40... Rxb6 {[%clk 0:01:00]} 41. Ra5 {[%clk 0:00:37.2]} 41... Qh6
{[%clk 0:00:51]} 42. Rf4 {[%clk 0:00:35.4]} 42... Bxf4 {[%clk 0:00:47]} 43. exf4
{[%clk 0:00:36.3]} 43... c4 {[%clk 0:00:37]} 44. dxc4 {[%clk 0:00:36.6]} 44...
dxc4 {[%clk 0:00:35.2]} 45. Nxc4 {[%clk 0:00:37.5]} 45... Bb5 {[%clk 0:00:25.9]}
46. Nxb6 {[%clk 0:00:35.7]} 46... Bxe2 {[%clk 0:00:25.7]} 47. Nxd7 {[%clk
0:00:36.6]} 47... Qg7 {[%clk 0:00:20.9]} 48. Nf6+ {[%clk 0:00:35.4]} 48... Kh8
{[%clk 0:00:21]} 49. Rc5 {[%clk 0:00:33.6]} 49... Qb7 {[%clk 0:00:19]} 50. Kf2
{[%clk 0:00:31.5]} 50... Bb5 {[%clk 0:00:14.1]} 51. Ke3 {[%clk 0:00:21]} 51...
Qf3+ {[%clk 0:00:13.5]} 52. Kd2 {[%clk 0:00:20.9]} 52... Qf2+ {[%clk 0:00:13.6]}
53. Kc3 {[%clk 0:00:20.8]} 53... Qxc5+ {[%clk 0:00:14]} 0-1

[Event "Early-Titled-Tuesday-Blitz-February-13-2024"]
[Site "Chess.com"]
[Date "2024.02.13"]
[Round "7"]
[White "SHIVACalypso"]
[Black "Preobrazhenska_D2011"]
[Result "0-1"]
[WhiteElo "2504"]
[BlackElo "2369"]
[TimeControl "180+1"]
[EndTime "9:20:57 PST"]
[Termination "Preobrazhenska_D2011 won by resignation"]

1. d4 {[%clk 0:02:56.1]} 1... Nf6 {[%clk 0:02:52.9]} 2. Nf3 {[%clk 0:02:56.4]}
2... b6 {[%clk 0:02:47.9]} 3. g3 {[%clk 0:02:56]} 3... e6 {[%clk 0:02:35.2]} 4.
Bg2 {[%clk 0:02:56.9]} 4... d5 {[%clk 0:02:35.2]} 5. Ne5 {[%clk 0:02:45.2]} 5...
Be7 {[%clk 0:02:27.2]} 6. O-O {[%clk 0:02:33.5]} 6... O-O {[%clk 0:02:24.8]} 7.
c4 {[%clk 0:02:29.7]} 7... c6 {[%clk 0:02:24.7]} 8. Nc3 {[%clk 0:02:28.7]} 8...
Ba6 {[%clk 0:02:21.8]} 9. b3 {[%clk 0:02:19.7]} 9... Nfd7 {[%clk 0:02:04.2]} 10.
Bf4 {[%clk 0:01:54.7]} 10... Nxe5 {[%clk 0:01:56.6]} 11. Bxe5 {[%clk 0:01:55.6]}
11... Nd7 {[%clk 0:01:47.8]} 12. Bf4 {[%clk 0:01:54.7]} 12... Rc8 {[%clk
0:01:40.6]} 13. Qd3 {[%clk 0:01:25.5]} 13... c5 {[%clk 0:01:16.5]} 14. Nb5
{[%clk 0:01:15]} 14... Bxb5 {[%clk 0:00:53.9]} 15. cxb5 {[%clk 0:01:14.7]} 15...
cxd4 {[%clk 0:00:54.3]} 16. Rac1 {[%clk 0:01:05.8]} 16... e5 {[%clk 0:00:51.7]}
17. Bd2 {[%clk 0:01:04.5]} 17... Nc5 {[%clk 0:00:42.7]} 18. Qb1 {[%clk
0:01:03.5]} 18... e4 {[%clk 0:00:36.5]} 19. Bf4 {[%clk 0:00:40.4]} 19... Qd7
{[%clk 0:00:26.7]} 20. Rfd1 {[%clk 0:00:39.4]} 20... d3 {[%clk 0:00:17.8]} 21.
exd3 {[%clk 0:00:35.7]} 21... Nxd3 {[%clk 0:00:18.7]} 22. Rxc8 {[%clk
0:00:31.3]} 22... Rxc8 {[%clk 0:00:19.6]} 23. Rxd3 {[%clk 0:00:31.3]} 23... exd3
{[%clk 0:00:19.3]} 24. Qxd3 {[%clk 0:00:32.2]} 24... d4 {[%clk 0:00:12.6]} 25.
Be4 {[%clk 0:00:30]} 25... h6 {[%clk 0:00:10.3]} 26. h4 {[%clk 0:00:28]} 26...
Rc5 {[%clk 0:00:08]} 27. a4 {[%clk 0:00:25.5]} 27... Rc3 {[%clk 0:00:07.7]} 28.
Qd2 {[%clk 0:00:24.3]} 28... Rxb3 {[%clk 0:00:07.6]} 29. Bc6 {[%clk 0:00:22.1]}
29... Qd8 {[%clk 0:00:05.3]} 30. Be5 {[%clk 0:00:12.9]} 30... Bf6 {[%clk
0:00:04]} 31. Bf4 {[%clk 0:00:13.1]} 31... Rb1+ {[%clk 0:00:03.5]} 32. Kg2
{[%clk 0:00:12.2]} 32... d3 {[%clk 0:00:04]} 33. Be4 {[%clk 0:00:11.8]} 33...
Rb3 {[%clk 0:00:04.2]} 34. g4 {[%clk 0:00:09.1]} 34... Qd4 {[%clk 0:00:04.7]}
35. f3 {[%clk 0:00:08.6]} 35... Rb2 {[%clk 0:00:04.7]} 36. g5 {[%clk 0:00:08.4]}
36... Rxd2+ {[%clk 0:00:05.4]} 37. Bxd2 {[%clk 0:00:09.2]} 37... hxg5 {[%clk
0:00:05.9]} 38. hxg5 {[%clk 0:00:09.2]} 38... Qb2 {[%clk 0:00:06.5]} 0-1

[Event "Early-Titled-Tuesday-Blitz-February-13-2024"]
[Site "Chess.com"]
[Date "2024.02.13"]
[Round "7"]
[White "N_I_Chess"]
[Black "ProChessWICTH"]
[Result "0-1"]
[WhiteElo "2305"]
[BlackElo "2526"]
[TimeControl "180+1"]
[EndTime "9:21:05 PST"]
[Termination "ProChessWICTH won by checkmate"]

1. d4 {[%clk 0:03:00.9]} 1... Nf6 {[%clk 0:02:59.6]} 2. c4 {[%clk 0:02:58]} 2...
g6 {[%clk 0:02:59.5]} 3. Nc3 {[%clk 0:02:57.8]} 3... d5 {[%clk 0:03:00.2]} 4.
cxd5 {[%clk 0:02:56.9]} 4... Nxd5 {[%clk 0:03:01.1]} 5. Bd2 {[%clk 0:02:57.3]}
5... Bg7 {[%clk 0:02:58.9]} 6. e4 {[%clk 0:02:56.4]} 6... Nxc3 {[%clk
0:02:59.6]} 7. Bxc3 {[%clk 0:02:57.3]} 7... c5 {[%clk 0:03:00.2]} 8. d5 {[%clk
0:02:56.5]} 8... Bxc3+ {[%clk 0:03:01.1]} 9. bxc3 {[%clk 0:02:56.7]} 9... O-O
{[%clk 0:03:02]} 10. Nf3 {[%clk 0:02:53.2]} 10... Nd7 {[%clk 0:02:58.9]} 11. Qd2
{[%clk 0:02:47.1]} 11... Nf6 {[%clk 0:02:46.5]} 12. Bd3 {[%clk 0:02:46.9]} 12...
Bg4 {[%clk 0:02:45.4]} 13. Ne5 {[%clk 0:02:42.8]} 13... e6 {[%clk 0:02:31.9]}
14. Nxg4 {[%clk 0:02:38.6]} 14... Nxg4 {[%clk 0:02:32.8]} 15. c4 {[%clk
0:02:34]} 15... exd5 {[%clk 0:02:32.3]} 16. cxd5 {[%clk 0:02:28.5]} 16... Re8
{[%clk 0:02:14.9]} 17. O-O {[%clk 0:02:24.8]} 17... Qd6 {[%clk 0:02:11.8]} 18.
g3 {[%clk 0:02:16.7]} 18... c4 {[%clk 0:01:54.2]} 19. Bc2 {[%clk 0:00:38.5]}
19... b5 {[%clk 0:01:47.3]} 20. h3 {[%clk 0:00:37.6]} 20... Nf6 {[%clk
0:01:38.4]} 21. Rfe1 {[%clk 0:00:33.7]} 21... Rad8 {[%clk 0:01:31.8]} 22. Rad1
{[%clk 0:00:30.7]} 22... Nd7 {[%clk 0:00:58.4]} 23. f4 {[%clk 0:00:28.9]} 23...
f6 {[%clk 0:00:56.3]} 24. Kh2 {[%clk 0:00:22.9]} 24... Kg7 {[%clk 0:00:47.5]}
25. Qf2 {[%clk 0:00:20.2]} 25... a5 {[%clk 0:00:39]} 26. h4 {[%clk 0:00:16.4]}
26... b4 {[%clk 0:00:34.7]} 27. Re2 {[%clk 0:00:14.5]} 27... Qb6 {[%clk
0:00:30.2]} 28. Qg2 {[%clk 0:00:13.1]} 28... b3 {[%clk 0:00:28.7]} 29. axb3
{[%clk 0:00:14]} 29... cxb3 {[%clk 0:00:29.1]} 30. Bb1 {[%clk 0:00:14.6]} 30...
a4 {[%clk 0:00:28.9]} 31. h5 {[%clk 0:00:14.9]} 31... a3 {[%clk 0:00:28.1]} 32.
Bd3 {[%clk 0:00:11.3]} 32... Nc5 {[%clk 0:00:23.9]} 33. Bc4 {[%clk 0:00:10.6]}
33... Qb4 {[%clk 0:00:22.2]} 34. Rd4 {[%clk 0:00:06.1]} 34... Qc3 {[%clk
0:00:20.6]} 35. Red2 {[%clk 0:00:06.1]} 35... b2 {[%clk 0:00:19.4]} 36. h6+
{[%clk 0:00:06.7]} 36... Kh8 {[%clk 0:00:17.6]} 37. Qh1 {[%clk 0:00:03.5]} 37...
Rb8 {[%clk 0:00:13.8]} 38. Ba2 {[%clk 0:00:03.5]} 38... Nxe4 {[%clk 0:00:10.2]}
39. R2d3 {[%clk 0:00:02]} 39... Qc2+ {[%clk 0:00:10.3]} 40. Kh3 {[%clk
0:00:00.9]} 40... Nf2+ {[%clk 0:00:10.5]} 41. Kh4 {[%clk 0:00:01.1]} 41... Nxh1
{[%clk 0:00:10.1]} 42. Rd2 {[%clk 0:00:02]} 42... Qf5 {[%clk 0:00:09.9]} 43. d6
{[%clk 0:00:02.8]} 43... Qh5# {[%clk 0:00:09.8]} 0-1

[Event "Early-Titled-Tuesday-Blitz-February-13-2024"]
[Site "Chess.com"]
[Date "2024.02.13"]
[Round "7"]
[White "Chesstiger64"]
[Black "ejam94"]
[Result "0-1"]
[WhiteElo "2315"]
[BlackElo "2515"]
[TimeControl "180+1"]
[EndTime "9:21:05 PST"]
[Termination "ejam94 won by checkmate"]

1. d4 {[%clk 0:03:00.9]} 1... Nf6 {[%clk 0:02:58]} 2. Nf3 {[%clk 0:03:00.7]}
2... g6 {[%clk 0:02:56.3]} 3. e3 {[%clk 0:03:00.9]} 3... b6 {[%clk 0:02:54.9]}
4. c4 {[%clk 0:03:01.3]} 4... Bb7 {[%clk 0:02:55.3]} 5. Nc3 {[%clk 0:03:01.9]}
5... Bg7 {[%clk 0:02:55.7]} 6. Bd3 {[%clk 0:03:02.4]} 6... O-O {[%clk 0:02:56]}
7. O-O {[%clk 0:03:01.8]} 7... d6 {[%clk 0:02:56.9]} 8. e4 {[%clk 0:03:01.4]}
8... Nbd7 {[%clk 0:02:57.4]} 9. b4 {[%clk 0:03:00.5]} 9... e5 {[%clk 0:02:57.4]}
10. d5 {[%clk 0:03:00.4]} 10... a5 {[%clk 0:02:57.3]} 11. bxa5 {[%clk 0:02:58]}
11... Rxa5 {[%clk 0:02:56.8]} 12. a4 {[%clk 0:02:58.6]} 12... Nc5 {[%clk
0:02:55.4]} 13. Bc2 {[%clk 0:02:51]} 13... c6 {[%clk 0:01:51.9]} 14. dxc6 {[%clk
0:02:48.1]} 14... Bxc6 {[%clk 0:01:51.8]} 15. Re1 {[%clk 0:02:39.6]} 15... Qd7
{[%clk 0:01:46.7]} 16. Ba3 {[%clk 0:02:11.5]} 16... Nxa4 {[%clk 0:01:25.2]} 17.
Nxa4 {[%clk 0:02:04.5]} 17... Bxa4 {[%clk 0:01:25]} 18. Bxa4 {[%clk 0:01:54.7]}
18... Rxa4 {[%clk 0:01:20.9]} 19. Qxd6 {[%clk 0:01:53.9]} 19... Qa7 {[%clk
0:00:36]} 20. Bb2 {[%clk 0:01:49.4]} 20... Rxa1 {[%clk 0:00:21.9]} 21. Rxa1
{[%clk 0:01:44.8]} 21... Qb7 {[%clk 0:00:20.6]} 22. Qxe5 {[%clk 0:01:30.9]}
22... Nh5 {[%clk 0:00:20.4]} 23. Qb5 {[%clk 0:01:28.9]} 23... Bxb2 {[%clk
0:00:20]} 24. Qxb2 {[%clk 0:01:29.6]} 24... Qxe4 {[%clk 0:00:20.3]} 25. Qxb6
{[%clk 0:01:27.1]} 25... Qxc4 {[%clk 0:00:20.3]} 26. Qe3 {[%clk 0:01:25]} 26...
Ng7 {[%clk 0:00:18.7]} 27. Rc1 {[%clk 0:01:22.5]} 27... Qd5 {[%clk 0:00:18]} 28.
Qe5 {[%clk 0:01:21.8]} 28... Qd7 {[%clk 0:00:16.1]} 29. h3 {[%clk 0:01:16.6]}
29... Re8 {[%clk 0:00:16.2]} 30. Qd4 {[%clk 0:01:14.3]} 30... Qb7 {[%clk
0:00:10.2]} 31. Rd1 {[%clk 0:01:10]} 31... Ne6 {[%clk 0:00:10.1]} 32. Qd7 {[%clk
0:01:09.5]} 32... Qxd7 {[%clk 0:00:08]} 33. Rxd7 {[%clk 0:01:08.5]} 33... Rf8
{[%clk 0:00:08.1]} 34. Ng5 {[%clk 0:01:07.8]} 34... Nxg5 {[%clk 0:00:07.7]} 35.
Kh2 {[%clk 0:01:06.9]} 35... Ne6 {[%clk 0:00:07.8]} 36. Re7 {[%clk 0:01:06.7]}
36... Kg7 {[%clk 0:00:08.2]} 37. g3 {[%clk 0:01:07.1]} 37... Kf6 {[%clk
0:00:08.7]} 38. Ra7 {[%clk 0:01:06.4]} 38... Rd8 {[%clk 0:00:09.1]} 39. Kg2
{[%clk 0:01:06.4]} 39... Rd2 {[%clk 0:00:09.3]} 40. Ra4 {[%clk 0:01:04.8]} 40...
Rb2 {[%clk 0:00:09.3]} 41. Rc4 {[%clk 0:01:04.8]} 41... h5 {[%clk 0:00:09]} 42.
h4 {[%clk 0:01:02.3]} 42... Ra2 {[%clk 0:00:09.2]} 43. Rb4 {[%clk 0:01:02.3]}
43... Rc2 {[%clk 0:00:09.3]} 44. Ra4 {[%clk 0:01:02.3]} 44... Ke5 {[%clk
0:00:09]} 45. Rb4 {[%clk 0:01:02.1]} 45... Nc5 {[%clk 0:00:09]} 46. Rb5 {[%clk
0:01:00.3]} 46... f5 {[%clk 0:00:07.9]} 47. Ra5 {[%clk 0:00:59.5]} 47... Kf6
{[%clk 0:00:07.6]} 48. Rb5 {[%clk 0:00:59]} 48... Ne4 {[%clk 0:00:07.8]} 49.
Rb6+ {[%clk 0:00:56.1]} 49... Kg7 {[%clk 0:00:07.9]} 50. Kf3 {[%clk 0:00:56.4]}
50... Rxf2+ {[%clk 0:00:07.8]} 51. Ke3 {[%clk 0:00:56.8]} 51... Rg2 {[%clk
0:00:08.3]} 52. Kf4 {[%clk 0:00:56.5]} 52... Rxg3 {[%clk 0:00:08.8]} 53. Ke5
{[%clk 0:00:54.8]} 53... Rg4 {[%clk 0:00:08.1]} 54. Rb7+ {[%clk 0:00:54.4]}
54... Kh6 {[%clk 0:00:08.5]} 55. Ke6 {[%clk 0:00:55]} 55... Rxh4 {[%clk
0:00:09.1]} 56. Kf7 {[%clk 0:00:55.4]} 56... Rg4 {[%clk 0:00:07.9]} 57. Kg8
{[%clk 0:00:55.2]} 57... Kg5 {[%clk 0:00:08.2]} 58. Kh7 {[%clk 0:00:54.7]} 58...
Kf4 {[%clk 0:00:08.7]} 59. Rb4 {[%clk 0:00:54.1]} 59... h4 {[%clk 0:00:09.2]}
60. Kh6 {[%clk 0:00:54]} 60... h3 {[%clk 0:00:09.7]} 61. Rxe4+ {[%clk
0:00:53.4]} 61... fxe4 {[%clk 0:00:09.5]} 62. Kh7 {[%clk 0:00:52.9]} 62... h2
{[%clk 0:00:10.4]} 63. Kh8 {[%clk 0:00:52.9]} 63... e3 {[%clk 0:00:11.3]} 64.
Kh7 {[%clk 0:00:53]} 64... e2 {[%clk 0:00:12.2]} 65. Kh8 {[%clk 0:00:53.5]}
65... Rg2 {[%clk 0:00:12.7]} 66. Kh7 {[%clk 0:00:54.1]} 66... g5 {[%clk
0:00:13.4]} 67. Kh8 {[%clk 0:00:54.6]} 67... g4 {[%clk 0:00:14]} 68. Kh7 {[%clk
0:00:55.2]} 68... g3 {[%clk 0:00:14.6]} 69. Kh8 {[%clk 0:00:55.8]} 69... Rf2
{[%clk 0:00:15.2]} 70. Kh7 {[%clk 0:00:56.4]} 70... g2 {[%clk 0:00:15.7]} 71.
Kh8 {[%clk 0:00:57]} 71... Rf3 {[%clk 0:00:16.2]} 72. Kh7 {[%clk 0:00:57.6]}
72... Rg3 {[%clk 0:00:16.7]} 73. Kh8 {[%clk 0:00:58.2]} 73... h1=Q# {[%clk
0:00:15.5]} 0-1

[Event "Early-Titled-Tuesday-Blitz-February-13-2024"]
[Site "Chess.com"]
[Date "2024.02.13"]
[Round "7"]
[White "Cambek64"]
[Black "HanSchut"]
[Result "0-1"]
[WhiteElo "2495"]
[BlackElo "2269"]
[TimeControl "180+1"]
[EndTime "9:21:05 PST"]
[Termination "HanSchut won on time"]

1. e4 {[%clk 0:02:58.8]} 1... c5 {[%clk 0:02:59.5]} 2. Nc3 {[%clk 0:02:57.3]}
2... Nc6 {[%clk 0:02:54.6]} 3. d3 {[%clk 0:02:56.7]} 3... g6 {[%clk 0:02:54.2]}
4. Be3 {[%clk 0:02:56.1]} 4... d6 {[%clk 0:02:53.7]} 5. d4 {[%clk 0:02:55.5]}
5... cxd4 {[%clk 0:02:52.9]} 6. Bxd4 {[%clk 0:02:56.2]} 6... Nxd4 {[%clk
0:02:51.8]} 7. Qxd4 {[%clk 0:02:57.1]} 7... Nf6 {[%clk 0:02:52]} 8. e5 {[%clk
0:02:55.3]} 8... dxe5 {[%clk 0:02:51.1]} 9. Bb5+ {[%clk 0:02:53.8]} 9... Bd7
{[%clk 0:02:50.8]} 10. Qxe5 {[%clk 0:02:52.6]} 10... Bg7 {[%clk 0:02:34.8]} 11.
O-O-O {[%clk 0:02:48.9]} 11... O-O {[%clk 0:02:33]} 12. Bxd7 {[%clk 0:02:33.3]}
12... Nxd7 {[%clk 0:02:27.1]} 13. Qb5 {[%clk 0:02:33.1]} 13... Bxc3 {[%clk
0:02:03.3]} 14. bxc3 {[%clk 0:02:30.2]} 14... Qc8 {[%clk 0:02:03.4]} 15. Qxd7
{[%clk 0:02:29.3]} 15... Qxc3 {[%clk 0:02:03.4]} 16. Qd4 {[%clk 0:02:29.9]}
16... Qa5 {[%clk 0:01:48.8]} 17. Qb2 {[%clk 0:02:30.3]} 17... Rfc8 {[%clk
0:01:42.4]} 18. Nf3 {[%clk 0:02:25.7]} 18... Rc6 {[%clk 0:01:42.4]} 19. Rd3
{[%clk 0:02:10.7]} 19... Rac8 {[%clk 0:01:36]} 20. Ne1 {[%clk 0:02:07.5]} 20...
Rb6 {[%clk 0:01:01.4]} 21. Rb3 {[%clk 0:02:05.3]} 21... Rcc6 {[%clk 0:01:01.6]}
22. Kb1 {[%clk 0:01:55.8]} 22... Qd2 {[%clk 0:00:54]} 23. Nd3 {[%clk 0:01:56.2]}
23... Re6 {[%clk 0:00:20.6]} 24. Rc1 {[%clk 0:01:52.5]} 24... Rbc6 {[%clk
0:00:15.2]} 25. g3 {[%clk 0:01:38.4]} 25... a5 {[%clk 0:00:11.6]} 26. Rxb7
{[%clk 0:01:33.3]} 26... f6 {[%clk 0:00:11.2]} 27. h4 {[%clk 0:00:32]} 27... a4
{[%clk 0:00:09.3]} 28. a3 {[%clk 0:00:31.5]} 28... Rc3 {[%clk 0:00:08.7]} 29.
Nf4 {[%clk 0:00:26.1]} 29... Rec6 {[%clk 0:00:07]} 30. Qa2+ {[%clk 0:00:19.8]}
30... Kg7 {[%clk 0:00:06.1]} 31. Ne6+ {[%clk 0:00:16.4]} 31... Kh6 {[%clk
0:00:06.3]} 32. Nf4 {[%clk 0:00:14.5]} 32... Qxf2 {[%clk 0:00:06]} 33. h5 {[%clk
0:00:11.5]} 33... Rb6+ {[%clk 0:00:06.1]} 34. Ka1 {[%clk 0:00:09.8]} 34... Rxb7
{[%clk 0:00:05.5]} 35. hxg6 {[%clk 0:00:09.2]} 35... hxg6 {[%clk 0:00:05.8]} 36.
Qf7 {[%clk 0:00:07.6]} 36... Qxg3 {[%clk 0:00:02.2]} 37. Rh1+ {[%clk 0:00:05.5]}
37... Kg5 {[%clk 0:00:02.7]} 38. Qxg6+ {[%clk 0:00:04.9]} 38... Kxf4 {[%clk
0:00:03.6]} 39. Rf1+ {[%clk 0:00:02.8]} 39... Rf3 {[%clk 0:00:04.2]} 40. Qh6+
{[%clk 0:00:01.2]} 40... Ke4 {[%clk 0:00:03.6]} 0-1

[Event "Early-Titled-Tuesday-Blitz-February-13-2024"]
[Site "Chess.com"]
[Date "2024.02.13"]
[Round "7"]
[White "SharapovEvgeny"]
[Black "saraswathii"]
[Result "1-0"]
[WhiteElo "2543"]
[BlackElo "2387"]
[TimeControl "180+1"]
[EndTime "9:21:06 PST"]
[Termination "SharapovEvgeny won on time"]

1. e4 {[%clk 0:03:00.1]} 1... c5 {[%clk 0:02:59.2]} 2. Nf3 {[%clk 0:03:00]} 2...
e6 {[%clk 0:02:57.9]} 3. c4 {[%clk 0:02:59]} 3... Nc6 {[%clk 0:02:55.8]} 4. Nc3
{[%clk 0:02:59]} 4... Nf6 {[%clk 0:02:54.9]} 5. Be2 {[%clk 0:02:58.9]} 5... d5
{[%clk 0:02:53.7]} 6. exd5 {[%clk 0:02:58.7]} 6... exd5 {[%clk 0:02:54.6]} 7. d4
{[%clk 0:02:58.8]} 7... Bg4 {[%clk 0:02:49.1]} 8. O-O {[%clk 0:02:52.9]} 8...
Be7 {[%clk 0:02:41.2]} 9. h3 {[%clk 0:02:51.5]} 9... Bxf3 {[%clk 0:02:37.8]} 10.
Bxf3 {[%clk 0:02:50.6]} 10... Nxd4 {[%clk 0:02:34.8]} 11. Bxd5 {[%clk
0:02:45.9]} 11... Qd7 {[%clk 0:02:21.2]} 12. Be3 {[%clk 0:02:42.2]} 12... Nf5
{[%clk 0:02:12.8]} 13. Qf3 {[%clk 0:02:33]} 13... O-O {[%clk 0:01:55.1]} 14.
Bxb7 {[%clk 0:02:24]} 14... Rab8 {[%clk 0:01:53.1]} 15. Bc6 {[%clk 0:02:23.5]}
15... Qe6 {[%clk 0:01:41.4]} 16. Bd5 {[%clk 0:02:08]} 16... Qd7 {[%clk
0:01:36.5]} 17. b3 {[%clk 0:02:04.5]} 17... Bd6 {[%clk 0:01:30.4]} 18. Rad1
{[%clk 0:02:01.5]} 18... Nh4 {[%clk 0:01:25.1]} 19. Qe2 {[%clk 0:01:53.5]} 19...
Qf5 {[%clk 0:01:23.7]} 20. Bxf7+ {[%clk 0:01:37.1]} 20... Rxf7 {[%clk
0:01:20.7]} 21. Rxd6 {[%clk 0:01:36.5]} 21... Qg6 {[%clk 0:01:12.7]} 22. g3
{[%clk 0:01:31]} 22... Nf5 {[%clk 0:01:10.8]} 23. Rd3 {[%clk 0:01:21.2]} 23...
Re8 {[%clk 0:00:59.3]} 24. Kh2 {[%clk 0:01:20.8]} 24... Nd4 {[%clk 0:00:45.6]}
25. Qd1 {[%clk 0:01:14.5]} 25... Nf3+ {[%clk 0:00:42.4]} 26. Kg2 {[%clk
0:01:09.1]} 26... Nh4+ {[%clk 0:00:37.2]} 27. Kh1 {[%clk 0:01:02.2]} 27... Nf5
{[%clk 0:00:21.3]} 28. Bf4 {[%clk 0:00:40.6]} 28... Nh5 {[%clk 0:00:19.4]} 29.
Qg4 {[%clk 0:00:34.2]} 29... Nxf4 {[%clk 0:00:17.5]} 30. gxf4 {[%clk 0:00:31.6]}
30... Qc6+ {[%clk 0:00:13.1]} 31. Nd5 {[%clk 0:00:28]} 31... Nd4 {[%clk
0:00:09.5]} 32. Rg1 {[%clk 0:00:22]} 32... a5 {[%clk 0:00:07.6]} 33. h4 {[%clk
0:00:18.2]} 33... a4 {[%clk 0:00:05.7]} 34. Kh2 {[%clk 0:00:17.1]} 34... Qh6
{[%clk 0:00:04.6]} 35. Qg5 {[%clk 0:00:14]} 35... Qd6 {[%clk 0:00:02.5]} 36.
Rdg3 {[%clk 0:00:11.9]} 36... Ne2 {[%clk 0:00:01.4]} 37. h5 {[%clk 0:00:07.9]}
37... Nxg3 {[%clk 0:00:01.3]} 38. Rxg3 {[%clk 0:00:08]} 38... h6 {[%clk
0:00:01.3]} 39. Qg6 {[%clk 0:00:05.8]} 1-0